[Event "German Bundesliga 2021-22"]
[Site "Germany"]
[Date "2022.04.30"]
[Round "5.9"]
[White "Navara, David"]
[Black "Seel, Christian"]
[Result "1/2-1/2"]
[ECO "C80"]
[WhiteElo "2693"]
[BlackElo "2486"]
[Annotator "TA"]
[PlyCount "66"]
[EventDate "2022.03.05"]
[EventType "team-tourn"]
[EventCountry "GER"]
[SourceTitle "playchess.com"]
[Source "ChessBase"]
[SourceQuality "1"]
[TimeControl "40/5400+30:1800+30"]

{[%evp 20,66,8,6,34,23,14,0,0,0,0,0,0,0,0,0,0,0,0,0,0,-8,-6,-6,-5,-8,0,-12,-8,-8,-8,-9,-8,-8,-8,-8,-8,-8,-8,-8,0,-8,-8,-21,0,0,0,0,0]} 1. e4 {[%emt 0:00:00]} e5 {[%emt 0:00:00]} 2. Nf3 {[%emt 0:00:00]} Nc6 {[%emt 0:00:00]} 3. Bb5 {[%emt 0:00:00]} a6 {[%emt 0:00:00]} 4. Ba4 {[%emt 0:00:00]} Nf6 {[%emt 0:00:00]} 5. O-O {[%emt 0:00:00]} Nxe4 {[%emt 0:00:00]} 6. d4 {[%emt 0:00:00]} b5 {[%emt 0:00:00]} 7. Bb3 {[%emt 0:00:00]} d5 {[%emt 0:00:00]} 8. dxe5 {[%emt 0:00:00]} Be6 {[%emt 0:00:00]} 9. Be3 {[%emt 0:00:00]} Be7 {[%emt 0:00:00]} 10. c3 {[%emt 0:00:00]} O-O {[%emt 0:00:00]} 11. Nbd2 {[%emt 0:00:00]} Nxd2 {[%emt 0:00:00] C83: Open Ruy Lopez: 9 c3 Be7.} 12. Qxd2 {[%emt 0:07:04]} Na5 $1 {[%emt 0:00:00] The main line 12...Na5 scores better than 12...Qd7.} 13. Bg5 {[%emt 0:08:22] The position is equal.} Nc4 {[%emt 0:04:05]} 14. Bxc4 {[%emt 0:00:37]} bxc4 {[%emt 0:00:06]} 15. b4 {[%emt 0:04:39]} cxb3 {[%emt 0:03:07]} 16. axb3 {[%emt 0:00:10]} c5 {[%emt 0:01:49] [#]} 17. h3 $146 {[%emt 0:19:07]} ({Predecessor:} 17. Ra3 Bxg5 18. Qxg5 f6 19. Qe3 fxe5 20. Nxe5 Qd6 21. f4 Rad8 22. Rfa1 Bc8 23. Nd3 {0-1 (43) Kerkmeester,J-Cortlever,N Wijk aan Zee 1974}) 17... Bxg5 {[%emt 0:14:34]} 18. Nxg5 {[%emt 0:00:17]} h6 {[%emt 0:00:16]} 19. Nf3 {[%emt 0:00:44]} Qb6 {[%emt 0:15:56]} 20. b4 {[%emt 0:13:49]} cxb4 {[%emt 0:01:53]} 21. cxb4 {[%emt 0:00:11]} Rfc8 {[%emt 0:00:42]} 22. Ra5 {[%emt 0:06:45]} Rab8 {[%emt 0:14:07]} 23. Rfa1 {[%emt 0:04:07]} Qxb4 {[%emt 0:01:32]} 24. Qxb4 {[%emt 0:01:10]} Rxb4 {[%emt 0:00:06]} 25. Rxa6 {[%emt 0:00:07]} Rc3 {[%emt 0:11:37][%cal Oe6h3]} 26. R6a4 {[%emt 0:10:29]} Rxa4 {[%emt 0:02:05]} 27. Rxa4 {[%emt 0:00:22] [#]} Bxh3 $1 $11 {[%emt 0:04:03][%mdl 4096] Endgame KRB-KRN} 28. Nd4 $1 {[%emt 0:00:18]} Be6 {[%emt 0:04:47]} 29. Ra6 {[%emt 0:01:34]} Rc1+ {[%emt 0:00:48]} 30. Kh2 {[%emt 0:00:05]} Re1 {[%emt 0:00:14]} 31. f4 {[%emt 0:02:58]} Re4 {[%emt 0:00:39][%csl LRd4,LRf4]} 32. Nxe6 {[%emt 0:00:48]} fxe6 {[%emt 0:00:04]} 33. Kg3 {[%emt 0:02:23]} g5 {[%emt 0:08:54] Not much happened in this game.  Weighted Error Value: White=0.02 (flawless) /Black=0.03 (flawless)} 1/2-1/2

[Event "German Bundesliga 2021-22"]
[Site "Germany"]
[Date "2022.04.30"]
[Round "5.9"]
[White "Nisipeanu, Liviu-Dieter"]
[Black "Jones, Gawain C B"]
[Result "1/2-1/2"]
[ECO "E70"]
[WhiteElo "2652"]
[BlackElo "2671"]
[Annotator "TA"]
[PlyCount "53"]
[EventDate "2022.03.05"]
[EventType "team-tourn"]
[EventCountry "GER"]
[SourceTitle "playchess.com"]
[Source "ChessBase"]
[SourceQuality "1"]
[TimeControl "40/5400+30:1800+30"]

{[%evp 18,53,34,19,12,10,25,33,27,-17,-17,-28,-24,-141,-139,-143,-143,-145,-150,-144,-83,-53,-20,-147,0,0,0,0,0,0,0,0,0,0,0,0,0,0]} 1. d4 {[%emt 0:00:00]} Nf6 {[%emt 0:00:00]} 2. c4 {[%emt 0:00:00]} g6 {[%emt 0:00:00]} 3. Nc3 {[%emt 0:00:00]} Bg7 {[%emt 0:00:00]} 4. e4 {[%emt 0:00:00]} d6 {[%emt 0:00:00]} 5. Bd3 {[%emt 0:00:00]} Nc6 {[%emt 0:00:28]} 6. Nge2 {[%emt 0:00:00]} O-O {[%emt 0:00:38]} 7. O-O {[%emt 0:00:00]} Nd7 {[%emt 0:02:03]} 8. Be3 {[%emt 0:00:00]} e5 {[%emt 0:00:16]} 9. d5 {[%emt 0:00:00]} Nd4 {[%emt 0:00:06]} 10. Nb5 {[%emt 0:02:53]} Nxb5 {[%emt 0:03:56] E70: King's Indian: Miscellaneous lines with 4 e4, including 5 Nge2 and 5 Bd3 0-0 6 Nge2.} 11. cxb5 {[%emt 0:00:05]} f5 {[%emt 0:01:14]} 12. exf5 {[%emt 0:06:36]} gxf5 {[%emt 0:00:08] White is slightly better.} 13. f4 {[%emt 0:01:56] [#]} e4 $146 {[%emt 0:09:26]} ({Predecessor:} 13... Nf6 14. h3 Kh8 15. Bc4 Ne4 16. Rb1 Bd7 17. a4 Qe7 18. Bd3 c6 19. Bxe4 fxe4 20. fxe5 Bxe5 21. dxc6 bxc6 22. bxc6 Rxf1+ 23. Kxf1 Bxc6 {0-1 (28) Khumalo,K (2138)-Vitiugov,N (2726) Chess.com INT 2022}) 14. Bc4 {[%emt 0:04:24]} Bxb2 {[%emt 0:00:43]} 15. Nd4 {[%emt 0:28:45]} (15. Rb1 $11 Ba3 16. Nd4) 15... Bxa1 $17 {[%emt 0:02:23]} 16. Ne6 {[%emt 0:00:11]} Qf6 {[%emt 0:05:08]} 17. Nxf8 {[%emt 0:00:17] [#]} Qc3 $1 {[%emt 0:06:00]} 18. Re1 {[%emt 0:02:52][%cal Of8e6]} Bb2 {[%emt 0:08:32]} ({Stronger than} 18... Nxf8 19. Qxa1 Qxa1 20. Rxa1 $15) (18... Kxf8 $142 19. Qxa1 Qxa1 20. Rxa1 a6 21. bxa6 b6) 19. Ne6 {[%emt 0:05:01] aiming for Bb3.} Qxc4 {[%emt 0:14:25]} 20. Qh5 {[%emt 0:00:08] White threatens Qe8+ and mate.} Nf8 {[%emt 0:14:35]} (20... Bg7 $17 {White must now prevent ...Nf6.} 21. Qg5 Qc3) 21. Qg5+ $11 {[%emt 0:06:28] The position is equal.} Ng6 {[%emt 0:03:54]} 22. Qd8+ {[%emt 0:00:07]} Kf7 {[%emt 0:00:03] [#] Hoping for ...Rb8.} 23. Nxc7 {[%emt 0:14:25] Chess con chili.} Bc3 {[%emt 0:17:59]} 24. Qe8+ {[%emt 0:08:26]} Kg7 {[%emt 0:00:46]} 25. Qd8 $1 {[%emt 0:00:20] Ne8+ is the strong threat.} Kf7 {[%emt 0:00:34]} 26. Qe8+ {[%emt 0:00:45]} Kg7 {[%emt 0:00:05]} 27. Qd8 $1 {[%emt 0:00:03] Weighted Error Value: White=0.15 (very precise) /Black=0.16 (very precise)} 1/2-1/2

[Event "German Bundesliga 2021-22"]
[Site "Germany"]
[Date "2022.04.30"]
[Round "5.9"]
[White "Nihal Sarin"]
[Black "Mamedyarov, Shakhriyar"]
[Result "1-0"]
[ECO "C54"]
[WhiteElo "2648"]
[BlackElo "2767"]
[Annotator "TA"]
[PlyCount "141"]
[EventDate "2022.03.05"]
[EventType "team-tourn"]
[EventCountry "GER"]
[SourceTitle "playchess.com"]
[Source "ChessBase"]
[SourceQuality "1"]
[TimeControl "40/5400+30:1800+30"]

{[%evp 21,141,0,0,0,14,15,25,0,0,0,24,17,14,7,13,15,21,18,28,16,13,18,17,16,18,25,12,10,18,13,16,14,14,15,34,30,33,35,22,15,40,35,43,35,39,0,0,0,25,11,24,9,9,7,8,2,4,4,4,4,4,4,10,0,8,0,0,0,28,0,0,0,0,0,0,0,0,0,8,8,8,0,80,0,0,0,0,0,0,0,0,0,297,284,276,225,310,320,306,310,838,849,927,715,890,794,483,478,1144,1138,1135,1135,1091,1019,1040,1071,974,932,697,646,6079,377]} 1. e4 {[%emt 0:00:00]} e5 {[%emt 0:00:00]} 2. Nf3 {[%emt 0:00:00]} Nc6 {[%emt 0:00:00]} 3. Bc4 {[%emt 0:00:00]} Bc5 {[%emt 0:00:00]} 4. c3 {[%emt 0:00:00]} Nf6 {[%emt 0:00:00]} 5. d4 {[%emt 0:00:00]} exd4 {[%emt 0:00:00]} 6. e5 {[%emt 0:00:00]} d5 {[%emt 0:00:00]} 7. Bb5 {[%emt 0:00:00]} Ne4 {[%emt 0:00:00]} 8. cxd4 {[%emt 0:00:00]} Bb6 {[%emt 0:00:00]} 9. Nc3 {[%emt 0:00:00]} O-O {[%emt 0:00:00]} 10. Be3 {[%emt 0:00:00]} Bg4 {[%emt 0:00:00]} 11. h3 {[%emt 0:00:00]} Bh5 {[%emt 0:00:00]} 12. Qc2 {[%emt 0:00:00]} Bg6 {[%emt 0:00:00]} 13. Qb3 {[%emt 0:00:00]} Ne7 {[%emt 0:00:00]} 14. O-O {[%emt 0:00:00]} c6 {[%emt 0:00:00]} 15. Bd3 {[%emt 0:00:00]} Nf5 {[%emt 0:00:00]} 16. Qc2 {[%emt 0:00:00]} Nxc3 {[%emt 0:00:00]} (16... Nxe3 {seems wilder.} 17. fxe3 Ng3 18. Bxg6 hxg6 19. Rf2 Bc7) 17. bxc3 {[%emt 0:00:00]} Nxe3 {[%emt 0:00:00]} 18. fxe3 {[%emt 0:00:00]} Bxd3 {[%emt 0:00:00]} 19. Qxd3 {[%emt 0:00:00]} f6 {[%emt 0:00:00]} 20. c4 {[%emt 0:07:28]} fxe5 {[%emt 0:03:25]} 21. Nxe5 {[%emt 0:02:06]} Qd6 {[%emt 0:02:15]} 22. Rxf8+ {[%emt 0:09:47]} Rxf8 {[%emt 0:00:12]} 23. Rf1 {[%emt 0:00:02]} Rxf1+ {[%emt 0:08:47]} 24. Qxf1 {[%emt 0:00:35]} Qe6 $1 {[%emt 0:00:23]} 25. cxd5 {[%emt 0:02:52]} cxd5 {[%emt 0:01:23]} 26. Qb1 {[%emt 0:11:19]} a5 {[%emt 0:14:42]} 27. Kh1 {[%emt 0:26:45]} Bc7 {[%emt 0:15:47]} 28. Qxb7 {[%emt 0:00:11]} Bxe5 {[%emt 0:00:06]} 29. dxe5 {[%emt 0:00:04]} Qxe5 {[%emt 0:02:37]} 30. Qa8+ {[%emt 0:00:06]} Kf7 {[%emt 0:00:03]} 31. Qxa5 {[%emt 0:00:06]} Qa1+ {[%emt 0:00:16]} 32. Kh2 {[%emt 0:00:04]} Qe5+ {[%emt 0:00:03]} 33. Kh1 {[%emt 0:00:06]} Qa1+ {[%emt 0:00:06]} 34. Kh2 {[%emt 0:00:01]} Qe5+ {[%emt 0:00:05]} 35. g3 {[%emt 0:00:03]} Qb2+ {[%emt 0:00:58]} 36. Kg1 {[%emt 0:00:21]} Ke6 {[%emt 0:09:54]} 37. Qa4 {[%emt 0:17:14]} g6 {[%emt 0:29:51]} 38. Qe8+ {[%emt 0:18:06]} Kd6 {[%emt 0:00:27]} 39. Qf8+ {[%emt 0:00:04]} Ke6 $1 {[%emt 0:09:10]} 40. Qf2 {[%emt 0:00:54]} Qb1+ {[%emt 0:05:51]} 41. Kh2 {[%emt 0:30:15]} Qe4 {[%emt 0:32:14]} 42. g4 {[%emt 0:00:51]} Qe5+ {[%emt 0:01:55]} 43. Kg2 {[%emt 0:00:33]} Qe4+ {[%emt 0:00:00]} 44. Kg3 {[%emt 0:00:00]} h6 {[%emt 0:00:00]} 45. h4 {[%emt 0:00:00]} Qe5+ $1 {[%emt 0:00:00]} 46. Kh3 {[%emt 0:00:00]} Qe4 $1 {[%emt 0:00:00]} 47. g5 {[%emt 0:00:00]} h5 $1 {[%emt 0:00:00]} 48. Kg3 {[%emt 0:00:00]} Qg4+ {[%emt 0:00:00]} 49. Kh2 {[%emt 0:00:00]} Qe4 {[%emt 0:00:00]} 50. Qf6+ {[%emt 0:00:00]} Kd7 {[%emt 0:00:00]} 51. Qd4 {[%emt 0:00:00]} Qf3 {[%emt 0:00:00] [#]} (51... Qc2+ $1 $11 {remains equal.} 52. Kg3 Kc6) 52. Qf4 {[%emt 0:00:00]} (52. Kg1 $1 $16) 52... Qe2+ $11 {[%emt 0:00:00]} (52... Qxf4+ 53. exf4 Ke6 54. Kg3 $18) 53. Kg3 {[%emt 0:00:00]} Kc6 {[%emt 0:00:00]} 54. a4 {[%emt 0:00:00]} Qe1+ {[%emt 0:00:00]} 55. Qf2 {[%emt 0:00:00]} Qb1 {[%emt 0:00:00]} 56. Qe2 {[%emt 0:00:00]} Qe4 $2 {[%emt 0:00:00][%mdl 8192] [#]} (56... Kc7 $11) 57. Qb5+ $1 $18 {[%emt 0:00:00]} Kc7 {[%emt 0:00:00]} 58. Qc5+ {[%emt 0:00:00]} Kb7 {[%emt 0:00:00]} 59. Qd4 {[%emt 0:00:00]} Qh1 {[%emt 0:00:00]} 60. Kf2 {[%emt 0:02:30]} ({Don't take} 60. Qg7+ Kb8 61. Qxg6 Qe1+ 62. Kf4 Qxh4+ 63. Ke5 Qg3+ 64. Kxd5 h4 65. Qb6+ (65. Qd6+ Kb7 $18) 65... Ka8 $18) 60... Ka6 $2 {[%emt 0:00:00]} (60... Qh2+ 61. Kf3 Qh3+ 62. Ke2 Qf5) 61. Ke2 {[%emt 0:01:30]} Ka5 {[%emt 0:03:25]} 62. Kd2 {[%emt 0:00:54]} Qh2+ {[%emt 0:01:05]} 63. Kd3 {[%emt 0:09:48]} Qh1 {[%emt 0:03:01]} 64. Kc2 {[%emt 0:00:07]} Qg1 {[%emt 0:01:34]} (64... Ka6 $142 65. Kb3 Qe1) 65. Qxd5+ $18 {[%emt 0:05:26]} Kxa4 {[%emt 0:00:03]} 66. Qc4+ {[%emt 0:00:06]} Ka5 {[%emt 0:00:03]} 67. Kd3 {[%emt 0:00:27]} Qh1 {[%emt 0:02:46]} 68. Qf4 {[%emt 0:02:31]} Qd5+ {[%emt 0:00:51]} 69. Qd4 {[%emt 0:00:11]} Qb5+ {[%emt 0:00:26]} 70. Kd2 {[%emt 0:01:09]} Qf1 {[%emt 0:01:01]} 71. Qe5+ $2 {[%emt 0:00:12]} (71. Qd8+ Kb5 72. Qd5+ Kb4 73. Qd6+ Ka5 74. Qe5+ (74. Qxg6 Qg2+ 75. Kd1 Qh1+ 76. Kc2 Qg2+ 77. Kd3 Qd5+ 78. Kc2 Qg2+ 79. Kc1 Qf1+ 80. Kd2 Qg2+ 81. Kd3 Qd5+ 82. Kc2 Qg2+ $18) 74... Kb4 75. Qf4+ Qc4 76. Qxc4+ Kxc4 77. Kc2) 1-0

[Event "German Bundesliga 2021-22"]
[Site "Germany"]
[Date "2022.04.30"]
[Round "5.9"]
[White "Stern, Rene"]
[Black "Keymer, Vincent"]
[Result "0-1"]
[ECO "D48"]
[WhiteElo "2510"]
[BlackElo "2664"]
[Annotator "TA"]
[PlyCount "56"]
[EventDate "2022.03.05"]
[EventType "team-tourn"]
[EventCountry "GER"]
[SourceTitle "playchess.com"]
[Source "ChessBase"]
[SourceQuality "1"]
[TimeControl "40/5400+30:1800+30"]

{[%evp 18,56,15,0,-12,-8,0,-8,-4,-14,-8,-8,-12,-32,-7,-36,-21,-32,0,0,0,0,0,0,-1,0,0,0,0,0,0,-53,-40,-84,-75,-76,-72,-193,-164,-156,-154]} 1. Nf3 {[%emt 0:00:00]} d5 {[%emt 0:00:00]} 2. d4 {[%emt 0:00:00]} Nf6 {[%emt 0:00:00]} 3. c4 {[%emt 0:00:00]} e6 {[%emt 0:00:00]} 4. Nc3 {[%emt 0:00:00]} c6 {[%emt 0:00:00]} 5. e3 {[%emt 0:00:00]} Nbd7 {[%emt 0:00:00]} 6. Bd3 {[%emt 0:00:00]} dxc4 {[%emt 0:00:00]} 7. Bxc4 {[%emt 0:00:00]} b5 {[%emt 0:00:00]} 8. Bd3 {[%emt 0:00:00]} Bb7 {[%emt 0:00:00]} 9. O-O {[%emt 0:00:00]} a6 {[%emt 0:00:00]} 10. a4 {[%emt 0:00:00]} b4 {[%emt 0:07:30] D48: Semi-Slav: Meran System: 7...b5 8 Bd3 a6.} 11. Ne4 {[%emt 0:00:00]} Be7 {[%emt 0:02:30]} 12. Nxf6+ {[%emt 0:05:30]} Bxf6 {[%emt 0:03:30] The position is equal.} 13. e4 {[%emt 0:12:30]} c5 {[%emt 0:05:30][%cal Bc6c5,Bc5c4][%mdl 32]} 14. e5 {[%emt 0:00:30]} Be7 {[%emt 0:01:30] [#]} 15. Re1 $146 {[%emt 0:01:30]} ({Predecessor:} 15. Qe2 cxd4 16. Be4 Qc7 17. Nxd4 O-O 18. Bf4 Nc5 19. Bc2 Rac8 20. Rac1 Rfd8 21. Nb3 {0-1 (37) Hjorth,J (1936)-Lovakovic,F (2361) ICCF email 2017}) 15... Rc8 {[%emt 0:13:30]} 16. Be4 {[%emt 0:05:30]} (16. Qe2 $5 {[%cal Rd3a6]}) 16... Bxe4 {[%emt 0:08:30]} 17. Rxe4 {[%emt 0:00:30]} c4 {[%emt 0:03:30]} 18. Rg4 $1 {[%emt 0:05:30]} g6 {[%emt 0:01:30]} 19. Bh6 {[%emt 0:10:30]} Nb6 {[%emt 0:02:30][%cal Bd7b6,Bb6d5,Bd5c3][%mdl 32]} 20. Nd2 {[%emt 0:07:30]} Nd5 {[%emt 0:07:30]} 21. Ne4 {[%emt 0:03:30]} c3 {[%emt 0:02:30]} 22. bxc3 {[%emt 0:10:30]} Nxc3 {[%emt 0:02:30]} 23. Nxc3 {[%emt 0:04:30]} Rxc3 {[%emt 0:07:30]} 24. Qe2 {[%emt 0:08:30]} (24. a5 $11) 24... Qd5 $15 {[%emt 0:03:30]} 25. Qxa6 {[%emt 0:07:15] [#]} Kd7 $1 {[%emt 0:01:30]} 26. Rg3 {[%emt 0:03:12] Threatens to win with Rxc3.} Rc4 {[%emt 0:05:30][%mdl 1024] ...Ra8 is the strong threat. Black has strong compensation. Dancing on a razor blade.} 27. Rf3 {[%emt 0:10:24]} (27. Qa7+ $17 Rc7 28. Qa6 (28. Qb6 $2 Ra8 $19)) 27... Ra8 $19 {[%emt 0:02:30]} 28. Qb6 {[%emt 0:00:06]} f5 {[%emt 0:20:27] Weighted Error Value: White=0.18 (very precise) /Black=0.04 (flawless)} ({Inferior is} 28... Rxd4 29. h3 Ke8 30. Rf4 Rxf4 31. Bxf4 $15) 0-1

[Event "German Bundesliga 2021-22"]
[Site "Germany"]
[Date "2022.04.30"]
[Round "5.10"]
[White "Maghsoodloo, Parham"]
[Black "Bartel, Mateusz"]
[Result "1-0"]
[ECO "D45"]
[WhiteElo "2701"]
[BlackElo "2616"]
[Annotator "TA"]
[PlyCount "153"]
[EventDate "2022.03.05"]
[EventType "team-tourn"]
[EventCountry "GER"]
[SourceTitle "playchess.com"]
[Source "ChessBase"]
[SourceQuality "1"]
[TimeControl "40/5400+30:1800+30"]

{[%evp 30,153,14,11,12,6,4,0,6,0,27,13,22,14,16,20,36,44,51,45,40,43,43,47,57,33,33,21,21,30,78,62,86,81,111,112,157,165,315,135,158,120,121,84,85,72,80,62,46,48,86,37,41,20,27,36,55,55,70,67,81,79,85,83,64,19,20,7,29,0,0,0,0,0,0,0,347,324,347,336,312,322,325,325,318,310,314,297,283,222,250,192,192,0,180,0,197,192,338,297,721,510,474,326,596,510,608,600,795,761,912,782,2353,2126,29982,29981,29986,29987,29987,29988,29988,29989,29989,29989,29991,29992]} 1. d4 {[%emt 0:00:00]} d5 {[%emt 0:00:00]} 2. c4 {[%emt 0:00:00]} c6 {[%emt 0:00:00]} 3. Nf3 {[%emt 0:00:00]} Nf6 {[%emt 0:00:00]} 4. e3 {[%emt 0:00:00]} a6 {[%emt 0:00:00]} 5. Nc3 {[%emt 0:00:00]} e6 {[%emt 0:00:00]} 6. b3 {[%emt 0:00:00]} Bb4 {[%emt 0:00:00]} 7. Bd2 {[%emt 0:00:00]} Nbd7 {[%emt 0:00:00]} 8. Bd3 {[%emt 0:00:00]} O-O {[%emt 0:00:00]} 9. O-O {[%emt 0:00:00]} Qe7 {[%emt 0:00:00]} 10. Qc2 {[%emt 0:04:50]} e5 {[%emt 0:04:04]} 11. dxe5 {[%emt 0:06:25]} Nxe5 {[%emt 0:00:10]} 12. Nxe5 {[%emt 0:00:22]} Qxe5 {[%emt 0:00:04]} 13. cxd5 {[%emt 0:00:58]} cxd5 {[%emt 0:01:49]} 14. Ne2 {[%emt 0:01:23]} Bd6 {[%emt 0:03:31]} 15. Ng3 {[%emt 0:03:14]} Qg5 {[%emt 0:03:30]} 16. f4 {[%emt 0:09:34]} Qh4 {[%emt 0:00:17]} 17. Rf3 {[%emt 0:08:05]} Re8 $1 {[%emt 0:15:28]} 18. Be1 {[%emt 0:29:27]} Qh6 $1 {[%emt 0:07:09]} 19. Rd1 {[%emt 0:10:58]} Ne4 {[%emt 0:09:51]} 20. h3 {[%emt 0:04:55]} f5 {[%emt 0:07:03]} 21. Bxe4 {[%emt 0:00:10]} dxe4 {[%emt 0:09:27]} 22. Rf2 {[%emt 0:00:27]} Bf8 {[%emt 0:00:27]} 23. Bb4 {[%emt 0:03:05]} Qh4 {[%emt 0:11:20]} 24. Kh2 {[%emt 0:04:34]} Bxb4 {[%emt 0:04:25]} 25. Qc4+ {[%emt 0:03:15]} Be6 {[%emt 0:00:05]} 26. Qxb4 {[%emt 0:00:10]} Qe7 $1 {[%emt 0:00:04]} 27. Qa5 {[%emt 0:07:04]} g6 {[%emt 0:00:31]} 28. Rfd2 {[%emt 0:02:05]} Rac8 {[%emt 0:00:11]} 29. Rd6 {[%emt 0:02:08]} Qc7 {[%emt 0:00:17]} (29... Rc2 $11 {deserves consideration.}) 30. Qb4 $16 {[%emt 0:00:58]} a5 {[%emt 0:06:11]} 31. Qd4 {[%emt 0:00:28]} Qc3 {[%emt 0:01:44]} 32. Qb6 $1 {[%emt 0:00:35]} Rc6 {[%emt 0:03:27]} 33. Rxc6 {[%emt 0:00:16]} bxc6 {[%emt 0:00:09]} (33... Qxc6 $142 34. Qxa5 Rc8) 34. Rd6 {[%emt 0:00:03]} (34. Ne2 $1 $18 {[%cal Re2c3] and the rest is easy.} Qb4 35. Qxc6) 34... Bd5 $16 {[%emt 0:00:06]} 35. Rd7 $1 {[%emt 0:00:57]} Rf8 {[%emt 0:02:24]} 36. Ra7 {[%emt 0:00:52]} c5 {[%emt 0:01:06]} 37. Rxa5 {[%emt 0:01:02]} Qxe3 {[%emt 0:00:29]} 38. Qxc5 {[%emt 0:00:05]} (38. Rxc5 {keeps more tension.} Bf7 39. Qc7 h5 40. Rc2) 38... Qxc5 {[%emt 0:00:05]} 39. Rxc5 {[%emt 0:00:02]} Be6 {[%emt 0:00:21]} 40. Nf1 {[%emt 0:00:00]} (40. Ne2 $16) 40... Rd8 $14 {[%emt 0:00:00]} 41. Kg1 {[%emt 0:00:00]} Rd1 {[%emt 0:00:00]} 42. Kf2 {[%emt 0:00:00]} Ra1 {[%emt 0:00:00]} 43. Rc2 {[%emt 0:00:00]} Kf7 {[%emt 0:00:00]} 44. Ng3 {[%emt 0:00:37]} h6 {[%emt 0:00:00]} 45. h4 {[%emt 0:01:04]} Ke7 {[%emt 0:03:17]} 46. Ne2 {[%emt 0:08:16]} Rd1 {[%emt 0:00:11]} 47. b4 {[%emt 0:03:55]} Rb1 $1 {[%emt 0:04:46]} 48. a3 {[%emt 0:00:48]} Bd7 {[%emt 0:00:20]} 49. Ke3 {[%emt 0:04:59]} (49. Nc3 $5 {[%cal Rc3b1]} Ra1 50. Ra2 $11) 49... Rb3+ {[%emt 0:00:47]} 50. Rc3 {[%emt 0:00:06]} Rb2 {[%emt 0:00:03]} 51. g3 {[%emt 0:03:09]} h5 {[%emt 0:02:38]} 52. Nd4 {[%emt 0:07:27]} Rg2 $2 {[%emt 0:00:53][%mdl 8192]} (52... Kd6 $11 {and Black has nothing to worry.}) 53. b5 $1 $18 {[%emt 0:00:07]} Kd6 {[%emt 0:08:54]} 54. a4 {[%emt 0:07:03]} ({Stronger than} 54. b6 Rxg3+ 55. Kd2 Rxc3 56. Kxc3 Bc8 $11) 54... Rxg3+ {[%emt 0:18:15]} 55. Kd2 {[%emt 0:00:04]} Rg2+ {[%emt 0:00:08] [#]} 56. Kc1 $1 {[%emt 0:00:03]} Rg1+ {[%emt 0:01:31]} 57. Kb2 {[%emt 0:01:56]} Rd1 {[%emt 0:00:29]} 58. Nc2 {[%emt 0:00:32]} Rd5 {[%emt 0:02:08]} 59. Nb4 {[%emt 0:00:37]} Rc5 {[%emt 0:02:35]} 60. Na6 {[%emt 0:00:48]} Rd5 {[%emt 0:00:24]} 61. Nb4 {[%emt 0:00:28]} Rc5 $1 {[%emt 0:00:01]} 62. Na6 {[%emt 0:00:26]} Rd5 $1 {[%emt 0:00:02]} 63. Rg3 {[%emt 0:00:05]} e3 {[%emt 0:05:14]} (63... g5 {was necessary.}) 64. Rxe3 {[%emt 0:00:33]} Rd4 $2 {[%emt 0:00:04]} (64... Bxb5 65. axb5 Rxb5+ 66. Kc2 Rb6) 65. Kb3 {[%emt 0:00:56]} Bc8 {[%emt 0:00:44]} 66. Rc3 {[%emt 0:00:27]} Bb7 $2 {[%emt 0:00:45]} (66... Be6+ 67. Ka3 Bc4) 67. a5 $18 {[%emt 0:00:33]} ({Not} 67. Rg3 Rxf4 68. Rxg6+ Ke5 $16) 67... Bd5+ {[%emt 0:00:56] [#]} 68. Ka3 $1 {[%emt 0:00:01]} Bc4 {[%emt 0:00:08]} 69. Ka4 {[%emt 0:00:16]} Rxf4 {[%emt 0:00:48]} 70. Nb4 {[%emt 0:00:01]} Rxh4 {[%emt 0:01:20]} 71. a6 {[%emt 0:00:29]} Kc7 {[%emt 0:00:48]} 72. Ka5 {[%emt 0:00:02]} Re4 {[%emt 0:00:42]} 73. b6+ {[%emt 0:00:05]} Kd6 {[%emt 0:00:04]} 74. a7 {[%emt 0:01:11]} Re5+ {[%emt 0:00:05]} 75. Ka4 {[%emt 0:00:04]} Bb5+ {[%emt 0:00:14]} 76. Kb3 {[%emt 0:00:06]} Re8 {[%emt 0:00:04]} 77. b7 {[%emt 0:00:04]} 1-0